{"text_format":"1","workbook":"xlsx","n_sheets":6,"sheets":["Lire avant de remplir","Archivage des donnees","Tableau de donnees","Donnees complementaires","Analyse des releves","Comparaison des releves"],"not_rendered":{"charts":3,"images":7,"macros":0,"external_links":0,"defined_names":13,"comments":0,"pivot_tables":0},"unopened":[],"bounds":{"document_bytes":16777216,"sheet_cells":100000,"rows_first":2000,"rows_last":500,"rows_between":2000,"halvings":0,"cell_chars":16384,"cell_head_chars":4096},"cells_cut":0,"cells_raw":0,"read":"whole","date_system":"1900"}

{"sheet":"Lire avant de remplir","index":0,"n_rows":30,"n_cols":10,"rows_kept":30,"cut":false,"hidden":false,"merged":[[10,4,11,5],[12,2,12,6],[2,2,3,10],[5,2,6,10],[7,2,7,10],[8,2,8,10],[10,6,11,6],[10,7,11,8],[9,2,9,10],[29,2,29,10],[32,13,32,15],[12,7,12,10],[13,9,13,10],[14,2,14,10],[15,2,15,10],[17,2,23,10],[24,2,24,10],[25,2,25,10],[27,2,27,10]]}
[]
[]
[]
[]
[]
[null,null,"Indice de Biodiversité et Connectivité des Ripisylves \n(IBC Ripisylves)\n(1) Mélanie DAJOUX, (2) Julie RUFFION"]
[]
[null,null,"(1) Coordinatrice du projet : melanie.dajoux@fne-aura.org"]
[null,null,"(2) Chargée du développement numérique du projet : julie.ruffion.fne.aura@gmail.com"]
[null,null,"En collaboration avec :"]
[]
[]
[null,null,"Pour en savoir plus, allez sur le site :",null,null,null,null,{"$f":"HYPERLINK(\"https://www.fne-aura.org/ripisylves/\",\"https://www.fne-aura.org/ripisylves/\")","v":"https://www.fne-aura.org/ripisylves/"}]
[null,null,null,null,null,null,null,null,null,"                                © Version 2.4 03/08/2020"]
[null,null,"Voici quelques explications pour une bonne prise en main de ce document. Avant toute chose, tous les scores par catégorie et la note IBC Ripisylves, sont basés sur le barème coloré présenté ci-dessous. Certains chiffres ne sont pas inclus car ils ne peuvent pas être obtenus selon le mécanisme de score utilisé."]
[]
[]
[null,null,"\nPlusieurs feuilles sont disponibles :\n\n- Archivage des données :  3 étapes à effectuer dans cette feuille en étant sur ordinateur.\n1) Rentrez l'intégralité de la fiche de relevé* que vous voulez intégrer à la base de données\n*Si vous avez déjà rentré une fiche de relevé avec le même nom de relevé, la remarque DÉJÀ ARCHIVÉ s'affichera. En temps normal un OK s'affiche\n\nRappels :\nNom du relevé = Code postal de la commune + 5 premières lettres du cours d'eau étudié + N° du relevé (01 à 99) + D ou G selon la rive étudiée (ex : 1ère rive droite de la Rize étudiée à Vaulx-en-Velin -> 69120RIZE01D). Dans le cas exceptionnel où vous réalisez vos relevés sur une île en plein milieu du cours d'eau, rajoutez un \"I\" dans le nom du relevé avant d'indiquer D ou G, n'hésitez pas à indiquer également que vous êtes sur une île dans la partie \"Commentaires sur le relevé\" de la Fiche de relevé."]
[]
[]
[]
[]
[]
[]
[null,null,"2) Vérifiez vos données* \n*Si vous repérez une erreur, ou un oubli, modifiez directement votre Fiche de relevé\n\n3) Cliquez sur le bouton situé en haut à droite pour archiver les données de la fiche de relevé dans les feuilles suivantes."]
[null,null,"Informations complémentaires sur le bouton :"]
[]
[]
[]
[null,null,"Ce bouton met quelques secondes pour rentrer vos données*. Quand le script est lancé ne touchez à rien.\n* si vous constatez une erreur dans la saisie des données après clic du bouton, vous pouvez modifier vos données dans les feuilles Tableau de données, Données complémentaires  Analyse des releves et Comparaison des releves MAIS vous ne devez pas toucher aux lignes de données comme expliqué ci-dessous. \n\n- Tableau de données et Données complémentaires : ces deux feuilles présentent ce que vous avez rempli sur les fiches de relevés mais sous forme de tableaux. Le 1er recense tout ce qui permet d'identifier votre relevé avec les scores associés. Le 2ème recense toutes les données précises (nombre de bois morts, types de dendromicrohabitats rencontrés, etc.). Les cases à cocher sur les fiches relevés sont représentées dans la feuille Données complémentaires sous forme d'absence (0) ou présence (1). Attention ne pas toucher à la ligne de données masquée car celle-ci contient des formules qui assurent le bon fonctionnement du document.\n\n- Analyse des relevés :  vous pouvez visualiser les scores de 1 ou deux relevés (ex: une seule rive étudiée car falaise de l'autre côté, ou tronçon avec rive gauche et rive droite) par rapport au score potentiel maximum (histogramme gris de référence). Pour cela, reportez le nom des relevés dans les cases bleues prévues à cet effet. Le tableau de données par rive est disponible sous les graphiques. Attention ne pas toucher à la  ligne de données masquée car celle-ci contient des formules qui assurent le bon fonctionnement du document.\n\n- Comparaison des relevés : comparaison des scores à l'aide d'un histogramme empilé. Pour cela, reportez les noms de vos relevés à comparer dans les cases bleues prévues à cet effet. Vous pouvez comparer jusqu'à 4 tronçons (ou 8 relevés) sur le même graphique. Attention ne pas toucher à la ligne de données masquée car celle-ci contient des formules qui assurent le bon fonctionnement du document."]

{"sheet":"Archivage des donnees","index":1,"n_rows":213,"n_cols":24,"rows_kept":213,"cut":false,"hidden":false,"merged":[[88,4,88,8],[105,1,105,13],[135,5,135,8],[136,5,136,8],[137,5,137,8],[138,5,138,8],[139,5,139,8],[140,5,140,8],[9,8,9,9],[25,1,25,13],[56,1,56,13],[0,6,1,6],[44,2,44,4],[44,6,44,7],[44,8,44,9],[47,1,47,13],[47,14,47,24],[49,8,49,9],[49,21,49,23],[50,2,50,4],[50,8,50,9],[35,2,35,13],[36,2,36,13],[37,2,37,13],[38,1,38,13],[38,14,38,24],[40,21,40,22],[42,6,42,7],[42,8,42,9],[43,2,43,4],[43,6,43,7],[43,8,43,9],[26,1,26,13],[26,14,26,24],[28,8,28,12],[4,1,5,13],[4,14,5,24],[6,1,21,3],[6,4,6,13],[22,1,22,5],[22,6,22,13],[22,14,24,24],[23,1,24,5],[23,6,24,13],[9,5,9,6],[10,5,10,6],[11,4,11,6],[12,5,12,6],[14,4,14,13],[16,5,16,6],[17,5,17,6],[18,5,18,6],[25,14,25,24],[49,6,49,7],[50,6,50,7],[51,6,51,7],[51,8,51,9],[52,2,52,4],[52,8,52,9],[53,2,53,4],[53,8,53,9],[52,6,52,7],[53,6,53,7],[29,2,29,13],[30,2,30,13],[32,1,32,13],[32,14,32,24],[33,1,33,5],[34,2,34,13],[56,14,56,24],[58,20,59,20],[58,21,58,22],[60,8,60,9],[60,6,60,7],[61,2,61,4],[61,6,61,7],[61,8,61,9],[62,2,62,4],[62,6,62,7],[62,8,62,9],[69,19,69,20],[69,21,69,24],[65,1,65,13],[65,14,65,24],[66,19,66,20],[66,21,66,24],[68,19,68,20],[68,21,68,24],[69,2,69,9],[75,21,75,24],[71,4,71,8],[72,4,72,8],[73,4,73,8],[74,4,74,8],[75,4,75,8],[77,9,78,9],[79,9,81,9],[87,4,87,8],[76,4,76,8],[77,4,78,8],[82,4,82,8],[79,4,81,8],[83,4,83,8],[84,4,84,8],[85,4,85,8],[86,4,86,8],[91,14,91,24],[97,21,97,24],[101,21,101,23],[102,21,102,23],[103,21,103,23],[91,1,91,13],[93,1,94,6],[97,1,97,13],[98,1,98,13],[98,14,98,24],[99,1,99,13],[99,14,99,24],[102,1,102,5],[102,6,102,9],[105,14,105,24],[116,1,116,13],[116,14,116,24],[126,2,126,13],[133,5,133,8],[134,5,134,8],[132,5,132,8],[127,1,127,13],[127,21,127,24],[128,1,128,13],[128,14,128,24],[129,1,129,13],[129,14,129,24],[166,1,171,1],[166,2,166,11],[166,14,171,14],[168,2,168,9],[172,1,172,13],[174,14,178,14],[175,21,175,22],[141,5,141,8],[142,5,142,8],[132,2,143,4],[149,1,149,13],[149,14,149,24],[143,5,143,8],[144,2,144,4],[144,5,144,8],[147,1,147,4],[156,1,156,13],[157,1,157,13],[157,14,157,24],[158,1,158,13],[158,14,158,24],[160,1,165,1],[160,14,165,14],[147,5,147,9],[212,14,212,15],[212,17,212,20],[176,21,176,22],[177,21,177,22],[179,14,184,14],[185,14,189,14],[199,21,199,23],[200,21,200,23],[201,21,201,23],[198,14,203,14],[204,14,209,14],[192,14,197,14],[202,21,202,23],[211,15,211,20],[192,1,197,1],[198,1,203,1],[204,1,209,1],[200,7,200,10],[174,1,178,1],[176,5,176,7],[179,1,184,1],[185,1,189,1],[187,2,187,3],[190,1,190,13]]}
[]
[]
[]
[]
[null,"2) Vérifiez une dernière fois vos données*\n*Si vous repérez une erreur, ou un oubli, modifiez directement votre Fiche de relevé",null,null,null,null,null,null,null,null,null,null,null,null,"3) Cliquez sur le bouton sur votre ordinateur pour archiver vos données "]
[]
[null,null,null,null,"REFERENCE DU RELEVE"]
[]
[]
[null,null,null,null,null,"Nom du relevé :",null,null,{"$f":"IF(ISERROR(MATCH(H10,'Tableau de donnees'!H2:H982,0)),\"OK\",\"DÉJÀ ARCHIVÉ\")","v":"OK"},null,null,"Date :"]
[null,null,null,null,null,"Type de parcours :",null,null,null,null,null,"Rive étudiée :"]
[null,null,null,null,"Largeur de la ripisylve parcourue :"]
[null,null,null,null,null,"Nom(s) des observateur(s) :"]
[]
[null,null,null,null,"LOCALISATION DU RELEVE"]
[]
[null,null,null,null,null,"Département :",null,null,null,"Commune :"]
[null,null,null,null,null,"Rivière et lieu-dit :"]
[null,null,null,null,null,"Gestionnaire / contacts :"]
[null,null,null,null,null,null,"Début         Lat :",null,null,"Long :",null,"Alt :"]
[null,null,null,null,null,null,"Fin              Lat :",null,null,"Long :",null,"Alt :"]
[]
[null,"Caractérisation du tronçon ",null,null,null,null,"Commentaires sur le relevé et largeur réelle de la ripisylve ",null,null,null,null,null,null,null,"BARÈME"]
[]
[]
[null,"FACTEURS LIES AU PEUPLEMENT ET À LA GESTION",null,null,null,null,null,null,null,null,null,null,null,null,"FACTEURS LIES AU PEUPLEMENT ET À LA GESTION"]
[null,"A – Ligneux autochtones caractéristiques ",null,null,null,null,null,null,null,null,null,null,null,null,"A – Ligneux autochtones caractéristiques "]
[]
[null,"  Cocher et compter les groupements de ligneux autochtones ≥ 25 % du relevé :",null,null,null,null,null,null,null,null,null,null,null,null,null,null,null,null,null,null,0,"Pas de groupement"]
[null,false,"à bois tendre : saules (Salix), peupliers hors cultivars (Populus)",null,null,null,null,null,null,null,null,null,null,null,null,null,{"$f":"IF(H10=\"\",\"\",IF(AND(B30,B31),5,IF(B30,2,IF(B31,2,0))))","v":""},null,null,null,2,"1 groupement "]
[null,false,"à bois dur : aulnes (Alnus), frênes (Fraxinus)",null,null,null,null,null,null,null,null,null,null,null,null,null,null,null,null,null,5,"2 groupements"]
[]
[null,"B – Structure verticale de la végétation ",null,null,null,null,null,null,null,null,null,null,null,null,"B – Structure verticale de la végétation "]
[null,"  Cocher et compter les strates ≥ 10 % du relevé :"]
[null,false,"Hélophytes",null,null,null,null,null,null,null,null,null,null,null,null,null,null,null,null,null,0,"1 strate"]
[null,false,"Feuillage < 1,5 m",null,null,null,null,null,null,null,null,null,null,null,null,null,{"$f":"IF(H10=\"\",\"\",IF(COUNTIF(B35:B38,TRUE)=3,2,IF(COUNTIF(B35:B38,TRUE)=2,2,IF(AND(B35,B36,B37,B38,TRUE),5,0))))","v":""},null,null,null,2,"2 – 3 strates"]
[null,false,"Feuillage 1,5 à 7 m",null,null,null,null,null,null,null,null,null,null,null,null,null,null,null,null,null,5,"4 strates"]
[null,false,"Feuillage > 7 m"]
[null,"C – Bois morts sur pied ",null,null,null,null,null,null,null,null,null,null,null,null,"C – Bois morts sur pied "]
[null,"  Compter que ce soit des arbres morts, des chandelles ou des souches, en mesurant la circonférence ou diamètre à 1,3 m de hauteur :"]
[null,null,null,null,null,null,null,null,null,null,null,null,null,null,null,null,null,null,null,null,null,"Nombre d'arbres par relevé"]
[null,null,null,null,null,null,null,null,null,null,null,null,null,null,null,null,null,null,null,null,null,"BMm","BMg"]
[null,null,null,null,null,"Circonférence (cm)","Diamètre (cm)",null,"Nombre",null,null,null,null,null,null,null,null,null,null,null,0,{"$f":"IF(H11=\"En plein\",\"< 5\",IF(H11=\"En points\",\"< 3\",\"\"))","v":""},{"$f":"IF(H11=\"En plein\",\"< 5\",IF(H11=\"En points\",\"< 3\",\"\"))","v":""}]
[null,null,"Bois Mort de dimension moyenne (BMm)",null,null,"[55 - 120[","[17,5 - 37,5[",null,null,null,null,null,null,null,null,null,{"$f":"IF(H11=\"En plein\",IF(I45>=8,5,IF(AND(I45>=5,I45<8),2,IF(AND(I44>=5,I45<5),1,0))),IF(H11=\"En points\",IF(I45>=4,5,IF(I45=3,2,IF(AND(I44>=3,I45<3),1,0))),\"\"))","v":""},null,null,null,1,{"$f":"IF(H11=\"En plein\",\"≥ 5\",IF(H11=\"En points\",\"≥ 3\",\"\"))","v":""},{"$f":"IF(H11=\"En plein\",\"< 5\",IF(H11=\"En points\",\"< 3\",\"\"))","v":""}]
[null,null,"Bois Mort de grosse dimension (BMg)",null,null,"≥ 120","≥ 37,5",null,null,null,null,null,null,null,null,null,null,null,null,null,2,null,{"$f":"IF(H11=\"En plein\",\"[5 - 8[\",IF(H11=\"En points\",\"3\",\"\"))","v":""}]
[null,null,null,null,null,null,null,null,null,null,null,null,null,null,null,null,null,null,null,null,5,null,{"$f":"IF(H11=\"En plein\",\"≥ 8\",IF(H11=\"En points\",\"≥ 4\",\"\"))","v":""}]
[]
[null,"D – Bois morts au sol",null,null,null,null,null,null,null,null,null,null,null,null,"D – Bois morts au sol"]
[null,"  Compter si et seulement si ≥ 1 m de long (hors tas de bois), en mesurant la circonférence ou le diamètre à 1 m du gros bout :"]
[null,null,null,null,null,"Surface (m² )","Hauteur (cm)",null,"Nombre",null,null,null,null,null,null,null,null,null,null,null,null,"Nombre d'arbres par relevé"]
[null,null,"Tas de bois",null,null,"≥ 1","≥ 40",null,null,null,null,null,null,null,null,null,null,null,null,null,null,"Tas de bois","BMm","BMg"]
[null,null,null,null,null,"Circonférence (cm)","Diamètre (cm)",null,"Nombre",null,null,null,null,null,null,null,null,null,null,null,0,{"$f":"IF(H11=\"En plein\",\"< 5\",IF(H11=\"En points\",\"< 3\",\"\"))","v":""},{"$f":"IF(H11=\"En plein\",\"< 5\",IF(H11=\"En points\",\"< 3\",\"\"))","v":""},{"$f":"IF(H11=\"En plein\",\"< 5\",IF(H11=\"En points\",\"< 3\",\"\"))","v":""}]
[null,null,"Bois Mort de dimension moyenne (BMm)",null,null,"[55 - 120[","[17,5 - 37,5[",null,null,null,null,null,null,null,null,null,{"$f":"IF(H11=\"En plein\",IF(I54>=8,5,IF(AND(I54>=5,I54<8),2,IF(AND(I53>=5,I54<5),1,IF(I51>=5,1,0)))),IF(H11=\"En points\",IF(I54>=4,5,IF(AND(I54=3),2,IF(AND(I53>=3,I54),1,IF(I51>=3,1,0)))),\"\"))","v":""},null,null,null,1,{"$f":"IF(H11=\"En plein\",\"≥ 5\",IF(H11=\"En points\",\"≥ 3\",\"\"))","v":""},{"$f":"IF(H11=\"En plein\",\"≥ 5\",IF(H11=\"En points\",\"≥ 3\",\"\"))","v":""},{"$f":"IF(H11=\"En plein\",\"< 5\",IF(H11=\"En points\",\"< 3\",\"\"))","v":""}]
[null,null,"Bois Mort de grosse dimension (BMg)",null,null,"≥ 120","≥ 37,5",null,null,null,null,null,null,null,null,null,null,null,null,null,2,null,null,{"$f":"IF(H11=\"En plein\",\"[5 - 8[\",IF(H11=\"En points\",\"3\",\"\"))","v":""}]
[null,null,null,null,null,null,null,null,null,null,null,null,null,null,null,null,null,null,null,null,5,null,null,{"$f":"IF(H11=\"En plein\",\"≥ 8\",IF(H11=\"En points\",\"≥ 4\",\"\"))","v":""}]
[]
[null,"E – Gros Bois et Très Gros Bois vivants ",null,null,null,null,null,null,null,null,null,null,null,null,"E – Gros Bois et Très Gros Bois vivants "]
[null,"  Compter en mesurant la circonférence ou le diamètre à 1,3 m de hauteur :"]
[null,null,null,null,null,null,null,null,null,null,null,null,null,null,null,null,null,null,null,null,null,"Nombre d'arbres par relevé"]
[null,null,null,null,null,null,null,null,null,null,null,null,null,null,null,null,null,null,null,null,null,"GB","TGB"]
[null,null,null,null,null,"Circonférence (cm)","Diamètre (cm)",null,"Nombre",null,null,null,null,null,null,null,null,null,null,null,0,{"$f":"IF(H11=\"En plein\",\"< 5\",IF(H11=\"En points\",\"< 3\",\"\"))","v":""},{"$f":"IF(H11=\"En plein\",\"< 5\",IF(H11=\"En points\",\"< 3\",\"\"))","v":""}]
[null,null,"Gros Bois (GB)",null,null,"≥ 150","[47,5 - 67,5[",null,null,null,null,null,null,null,null,null,{"$f":"IF(H11=\"En plein\",IF(I63>=10,5,IF(AND(I63>=5,I63<10),2,IF(AND(I62>=5,I63<5),1,0))),IF(H11=\"En points\",IF(I63>=5,5,IF(AND(I63>=3,I63<5),2,IF(AND(I62>=3,I63<3),1,0))),\"\"))","v":""},null,null,null,1,{"$f":"IF(H11=\"En plein\",\"≥ 5\",IF(H11=\"En points\",\"≥ 3\",\"\"))","v":""},{"$f":"IF(H11=\"En plein\",\"< 5\",IF(H11=\"En points\",\"< 3\",\"\"))","v":""}]
[null,null,"Très Gros Bois (TGB)",null,null,"≥ 210","≥ 67,5",null,null,null,null,null,null,null,null,null,null,null,null,null,2,null,{"$f":"IF(H11=\"En plein\",\"[5 - 10[\",IF(H11=\"En points\",\"[3 - 5[\",\"\"))","v":""}]
[null,null,null,null,null,null,null,null,null,null,null,null,null,null,null,null,null,null,null,null,5,null,{"$f":"IF(H11=\"En plein\",\"≥ 10\",IF(H11=\"En points\",\"≥ 5\",\"\"))","v":""}]
[]
[null,"F – Arbres vivants porteurs de dendromicrohabitats",null,null,null,null,null,null,null,null,null,null,null,null,"F – Arbres vivants porteurs de dendromicrohabitats"]
[null,"  Compter en respectant les règles suivantes :  "]
[null,"  Règle 1 : Un arbre possédant plusieurs groupes de dendromicrohabitats est compté plusieurs fois"]
[null,"  Règle 2 : Un arbre possédant plusieurs dendromicrohabitats appartenant au même groupe n’est compté qu’une seule fois"]
[null,"  Règle 3 :",{"$f":"IF(H11=\"En plein\",\"Si plusieurs arbres possèdent le même groupe de dendromicrohabitats, en comptabiliser au max 4\",IF(H11=\"En points\",\"Si plusieurs arbres possèdent le même groupe de dendromicrohabitats, en comptabiliser au max 2\",\"\"))","v":""}]
[null,null,null,null,null,null,null,null,null,"Nombre"]
[null,null,null,null,"Loges de pics : petite taille / moyenne taille / grande taille / flûte de pic"]
[null,null,null,null,"Cavités à terreau : de pied / de tronc / semi - ouverte / ouverte vers le haut / branche creuse"]
[null,null,null,null,"Orifices et galeries d'insectes"]
[null,null,null,null,"Concavités : dendrotelme remplie d'eau / trou de nourissage de pic / à fond dur"]
[null,null,null,null,"Aubier apparent : bois sans écorce / blessure due au feu / écorce décollée formant un abri"]
[null,null,null,null,"Aubier et bois de cœur apparents : cime brisée / bris de charpentière / fente"]
[null,null,null,null,"Bois mort dans le houppier : branches mortes / cime morte / vestige de charpentière brisée"]
[null,null,null,null,null,null,null,null,null,null,null,null,null,null,null,null,null,null,null,null,0,{"$f":"IF(H11=\"En plein\",\"< 5 arbres\",IF(H11=\"En points\",\"< 3 arbres\",\"\"))","v":""}]
[null,null,null,null,"Agglomérations de gourmands ou rameaux : balais de sorcière / borgne",null,null,null,null,null,null,null,null,null,null,null,{"$f":"IF(H11=\"En plein\",IF(J90>=10,5,IF(AND(J90>=5,J90<10),2,0)),IF(H11=\"En points\",IF(J90>=5,5,IF(AND(J90>=3,J90<5),2,0)),\"\"))","v":""},null,null,null,2,{"$f":"IF(H11=\"En plein\",\"[5 - 10[ arbres\",IF(H11=\"En points\",\"[3 - 5[ arbres\",\"\"))","v":""}]
[null,null,null,null,null,null,null,null,null,null,null,null,null,null,null,null,null,null,null,null,5,{"$f":"IF(H11=\"En plein\",\"≥ 10 arbres\",IF(H11=\"En points\",\"≥ 5 arbres\",\"\"))","v":""}]
[]
[null,null,null,null,"Loupes et chancres "]
[null,null,null,null,"Sporophores de champignons pérennes : polypore pérenne"]
[null,null,null,null,"Sporophores de champignons éphémères : polypore annuel / agaricale charnu"]
[null,null,null,null,"Plantes et lichens épiphytes ou parasites : bryophytes / lichens / lierre ou lianes / gui"]
[null,null,null,null,"Nids : gros nid de vertébré"]
[null,null,null,null,"Microsols : du houppier"]
[null,null,null,null,"Coulées de sève et résine"]
[null,null,null,null,null,null,null,null,"TOTAL :",{"$f":"SUM(J72:J89)","v":0}]
[]
[null,"G – Abris racinaires aquatiques ",null,null,null,null,null,null,null,null,null,null,null,null,"G – Abris racinaires aquatiques "]
[]
[null,"  Compter le nombre d’arbres vivants ET morts avec abris : entrelacs racinaires \n  (S > 600 cm² = format A4) et cavités (ø > 20 cm, prof. > 10 cm) :",null,null,null,null,null,"Nombre",null,null,null,null,null,null,null,null,null,null,null,null,0,{"$f":"IF(H11=\"En plein\",\"< 5 arbres\",IF(H11=\"En points\",\"< 3 arbres\",\"\"))","v":""}]
[null,null,null,null,null,null,null,null,null,null,null,null,null,null,null,null,{"$f":"IF(H11=\"En plein\",IF(H95>=10,5,IF(AND(H95>=5,H95<10),2,0)),IF(H11=\"En points\",IF(H95>=5,5,IF(AND(H95>=3,H95<5),2,0)),\"\"))","v":""},null,null,null,2,{"$f":"IF(H11=\"En plein\",\"[5 - 10[ arbres\",IF(H11=\"En points\",\"[3 - 5[ arbres\",\"\"))","v":""}]
[null,null,null,null,null,null,null,null,null,null,null,null,null,null,null,null,null,null,null,null,5,{"$f":"IF(H11=\"En plein\",\"≥ 10 arbres\",IF(H11=\"En points\",\"≥ 5 arbres\",\"\"))","v":""}]
[]
[null,null,null,null,null,null,null,null,null,null,null,null,null,null,null,null,{"$f":"Q30+Q36+Q44+Q53+Q62+Q80+Q95","v":{"$error":"#VALUE!"}},"/ 35"]
[null,"FACTEURS LIES AU CONTEXTE",null,null,null,null,null,null,null,null,null,null,null,null,"FACTEURS LIES AU CONTEXTE"]
[null,"H – Continuité temporelle de l’état boisé",null,null,null,null,null,null,null,null,null,null,null,null,"H – Continuité temporelle de l’état boisé"]
[]
[null,null,null,null,null,null,null,null,null,null,null,null,null,null,null,null,null,null,null,null,0,"Pas forêt ancienne"]
[null,"  À réaliser au bureau en se référant aux explications de la notice :",null,null,null,null,null,null,null,null,null,null,null,null,null,null,{"$f":"IF(H10=\"\",\"\",IF(G103=\"Forêt ancienne\",5,IF(G103=\"Forêt ancienne probable ou défrichée en partie\",2,0)))","v":""},null,null,null,2,"Forêt ancienne probable ou défrichée en partie"]
[null,null,null,null,null,null,null,null,null,null,null,null,null,null,null,null,null,null,null,null,5,"Forêt ancienne"]
[]
[null,"I – Milieux aquatiques complémentaires au cours d’eau ",null,null,null,null,null,null,null,null,null,null,null,null,"I – Milieux aquatiques complémentaires au cours d’eau "]
[null,"  Dans une limite de 10 m par rapport à la zone de relevé côté rive étudiée, cocher les types présents sur la berge :"]
[null,false,"Source ou suintement"]
[null,false,"Ruisselet, fossé humide non entretenu ou petit canal (largeur < 1 m)"]
[null,false,"Confluence avec un autre cours d’eau"]
[null,false,"Bras mort, isolé, secondaire",null,null,null,null,null,null,null,null,null,null,null,null,null,null,null,null,null,0,"Aucun type"]
[null,false,"Lac ou plan d’eau profond",null,null,null,null,null,null,null,null,null,null,null,null,null,{"$f":"IF(H10=\"\",\"\",IF(COUNTIF(B108:B116,TRUE)>=2,5,IF(COUNTIF(B108:B116,TRUE)=1,2,0)))","v":""},null,null,null,2,"1 type"]
[null,false,"Etang, lagune ou plan d’eau peu profond",null,null,null,null,null,null,null,null,null,null,null,null,null,null,null,null,null,5,"≥ 2 types"]
[null,false,"Mare ou autre petit point d’eau"]
[null,false,"Tourbière"]
[null,false,"Zone marécageuse"]
[null,"J – Milieux minéraux annexes ",null,null,null,null,null,null,null,null,null,null,null,null,"J – Milieux minéraux et annexes "]
[null,"  Dans une limite de 10 m par rapport à la zone de relevé côté rive étudiée, cocher les types présents sur la berge ≥ 50 m² cumulés (hors amoncellement de blocs stables) :"]
[null,false,"Falaise"]
[null,false,"Grotte ou gouffre"]
[null,false,"Rocher de hauteur inférieure à celle du peuplement (gros blocs > 20 cm, paroi ou corniche rocheuse, affleurement rocheux)"]
[null,false,"Éboulis instable",null,null,null,null,null,null,null,null,null,null,null,null,null,null,null,null,null,0,"0 – 1 type"]
[null,false,"Chaos de blocs > 2 m",null,null,null,null,null,null,null,null,null,null,null,null,null,{"$f":"IF(H10=\"\",\"\",IF(COUNTIF(B119:B127,TRUE)>=3,5,IF(COUNTIF(B119:B127,TRUE)=2,2,0)))","v":""},null,null,null,2,"2 types"]
[null,false,"Affleurement de banc de galets (hors lit mineur)",null,null,null,null,null,null,null,null,null,null,null,null,null,null,null,null,null,5,"≥ 3 types"]
[null,false,"Plage de dépôt de sédiments fins (suite à crue)"]
[null,false,"Berges meubles verticales (nidification oiseaux des rivages, gîtes à insectes, etc.)"]
[null,false,"Amoncellement de blocs stables (dont éboulis, tas de pierre, ruine, murette) < 50 m de long cumulés et offrant des capacités d’accueil pour la biodiversité"]
[null,null,null,null,null,null,null,null,null,null,null,null,null,null,null,null,{"$f":"Q103+Q112+Q123","v":{"$error":"#VALUE!"}},"/ 15"]
[null,"FACTEURS LIES AUX PERTURBATIONS DU MILIEU",null,null,null,null,null,null,null,null,null,null,null,null,"FACTEURS LIES AUX PERTURBATIONS DU MILIEU"]
[null,"K – Présence d'espèces exotiques envahissantes",null,null,null,null,null,null,null,null,null,null,null,null,"K – Présence d’arbres exotiques et d’espèces invasives"]
[null,"  Estimer le pourcentage de recouvrement dans la zone de relevé :"]
[null,null,null,null,null,null,null,null,null,"Pourcentage \nde recouvrement"]
[null,null,"Espèces Exotiques Envahissantes (EEE)\n Liste A et B",null,null,"Ailante"]
[null,null,null,null,null,"Balsamine de l’Himalaya"]
[null,null,null,null,null,"Berce du Caucase"]
[null,null,null,null,null,"Buddléia de David / Arbre aux papillons"]
[null,null,null,null,null,"Érable negundo",null,null,null,null,null,null,null,null,null,null,null,null,null,null,0,"> 15 %"]
[null,null,null,null,null,"Faux-indigo",null,null,null,null,null,null,null,null,null,null,null,null,null,null,2,"]1 % - 15 %] "]
[null,null,null,null,null,"Laurier cerise",null,null,null,null,null,null,null,null,null,null,null,null,null,null,4,"≤ 1 %"]
[null,null,null,null,null,"Raisin d’Amérique",null,null,null,null,null,null,null,null,null,null,{"$f":"IF(H10=\"\",\"\",IF(J146=0,5,IF(J146<=1,4,IF(AND(J146<=15,J146>1),2,0))))","v":""},null,null,null,5,0]
[null,null,null,null,null,"Renouées asiatiques (ex : Renouée du Japon)"]
[null,null,null,null,null,"Solidages (ex : Solidage verge-d’or)"]
[null,null,null,null,null,"Topinambour"]
[null,null,null,null,null,"Vigne vierge commune"]
[null,null,"EEE Liste C",null,null,"Robinier faux-acacia"]
[null,null,null,null,null,null,null,null,"TOTAL",{"$f":"SUM(J133:J145)","v":0}]
[]
[null,"  Nom(s) espèce(s) invasive(s) observée(s) non listée(s) :"]
[]
[null,"L – Dégradations et perturbations du milieu ",null,null,null,null,null,null,null,null,null,null,null,null,"L – Dégradations et perturbations du milieu "]
[null,"  Dans une limite de 10 m par rapport à la zone de relevé côté rive étudiée, cocher les types présents sur la berge :"]
[null,false,"Artificialisation et dégradation des berges : palplanches, enrochements en béton et en pierre"]
[null,false,"Artificialisation des milieux : culture agricole, gestion forestière intensive, jardins et parcs entretenus, espaces clôturés infranchissables (grillages)",null,null,null,null,null,null,null,null,null,null,null,null,null,null,null,null,null,0,"≥ 2 types"]
[null,false,"Imperméabilisation",null,null,null,null,null,null,null,null,null,null,null,null,null,{"$f":"IF(H10=\"\",\"\",IF(COUNTIF(B152:B156,TRUE)>=2,0,IF(COUNTIF(B152:B156,TRUE)=1,2,5)))","v":""},null,null,null,2,"1 type"]
[null,false,"Fréquentation humaine et espèces associées (chiens, chevaux, bovins), berges fortement érodées de plus de 50 m de long, passage à gué)",null,null,null,null,null,null,null,null,null,null,null,null,null,null,null,null,null,5,"Aucun type"]
[null,false,"Décharge sauvage (S > 1 m²)"]
[null,null,null,null,null,null,null,null,null,null,null,null,null,null,null,null,{"$f":"Q140+Q154","v":{"$error":"#VALUE!"}},"/ 10"]
[null,"FACTEURS DE CONNECTIVITE",null,null,null,null,null,null,null,null,null,null,null,null,"FACTEURS DE CONNECTIVITE"]
[null,"M – Connectivité longitudinale ",null,null,null,null,null,null,null,null,null,null,null,null,"M – Connectivité longitudinale "]
[null,"À partir de photographies aériennes et d’une vérification sur le terrain, évaluer les paramètres suivants :"]
[null,"M1",null,null,null,null,null,null,null,null,null,null,null,null,"M1"]
[null,null,null,null,null,null,null,null,null,null,null,null,null,null,null,null,null,null,null,null,0,"< 25 %"]
[null,null,"  % de la berge avec plus de 5 m de large de couvert arboré ou arbustif (prendre en compte le houppier) :",null,null,null,null,null,null,null,null,null,null,null,null,null,{"$f":"IF(H10=\"\",\"\",IF(J163>75,5,IF(AND(J163<=75,J163>50),4,IF(AND(J163>=25,J163<=50),2,0))))","v":""},null,null,null,2,"[25 % - 50 %] "]
[null,null,null,null,null,null,null,null,null,null,null,null,null,null,null,null,null,null,null,null,4,"]50 % - 75 %] "]
[null,null,null,null,null,null,null,null,null,null,null,null,null,null,null,null,null,null,null,null,5,"> 75 %"]
[]
[null,"M2",null,null,null,null,null,null,null,null,null,null,null,null,"M2"]
[null,null,null,null,null,null,null,null,null,null,null,null,null,null,null,null,null,null,null,null,0,"> 30 m"]
[null,null,"  Infrastructures de transport (route goudronnée, voie ferrée) transversales aux cours d’eau en mètres de large cumulés :",null,null,null,null,null,null,null,null,null,null,null,null,null,{"$f":"IF(H10=\"\",\"\",IF(K169>30,0,IF(AND(K169<=30,K169>15),2,IF(AND(K169<=15,K169>0),4,5))))","v":""},null,null,null,2,"]15 m - 30 m] "]
[null,null,null,null,null,null,null,null,null,null,null,null,null,null,null,null,null,null,null,null,4,"≤ 15 m"]
[null,null,null,null,null,null,null,null,null,null,null,null,null,null,null,null,null,null,null,null,5,"0 m"]
[]
[null,"N – Connectivité transversale (évaluation sur la zone de relevé)",null,null,null,null,null,null,null,null,null,null,null,null,"N – Connectivité transversale"]
[null,"Sur la zone de relevé, évaluer les paramètres suivants :"]
[null,"N1",null,null,null,null,null,null,null,null,null,null,null,null,"N1"]
[null,null,null,null,null,null,null,null,null,null,null,null,null,null,null,null,null,null,null,null,0,"Berge complètement déconnectée"]
[null,null,"  Connexion du cours d’eau au lit majeur :",null,null,null,null,null,null,null,null,null,null,null,null,null,{"$f":"IF(H10=\"\",\"\",IF(F177=\"Berge connectée\",5,IF(F177=\"Berge partiellement déconnectée\",2,0)))","v":""},null,null,null,2,"Berge partiellement déconnectée"]
[null,null,null,null,null,null,null,null,null,null,null,null,null,null,null,null,null,null,null,null,5,"Berge connectée"]
[]
[null,"N2",null,null,null,null,null,null,null,null,null,null,null,null,"N2"]
[null,null,null,null,null,null,null,null,null,null,null,null,null,null,null,null,null,null,null,null,0,"> 75 %"]
[null,null,"  % de sol nu sans végétation :",null,null,null,null,null,null,null,null,null,null,null,null,null,{"$f":"IF(H10=\"\",\"\",IF(E182<25,5,IF(AND(E182>=25,E182<=50),4,IF(AND(E182>50,E182<=75),2,0))))","v":""},null,null,null,2,"]50 % - 75 %] "]
[null,null,null,null,null,null,null,null,null,null,null,null,null,null,null,null,null,null,null,null,4,"[25 % - 50 %] "]
[null,null,null,null,null,null,null,null,null,null,null,null,null,null,null,null,null,null,null,null,5,"< 25 %"]
[]
[null,"N3",null,null,null,null,null,null,null,null,null,null,null,null,"N3"]
[null,null,null,null,"%","°",null,null,null,null,null,null,null,null,null,null,null,null,null,null,0,"> 100 % (45°)"]
[null,null,"  Pente moyenne de la berge :",null,null,null,null,null,null,null,null,null,null,null,null,null,{"$f":"IF(H10=\"\",\"\",IF(E188>100,0,IF(F188>45,0,IF(AND(E188>=20,E188<=100),2,IF(AND(F188>=11,F188<=45),2,5)))))","v":""},null,null,null,2,"[20 % - 100 %] (11° - 45°)"]
[null,null,null,null,null,null,null,null,null,null,null,null,null,null,null,null,null,null,null,null,5,"< 20 % (11°)"]
[]
[null,"O – Connectivité paysagère ",null,null,null,null,null,null,null,null,null,null,null,null,"O – Connectivité paysagère "]
[null,"  À partir de photographies aériennes et de vérification sur le terrain sur un périmètre de 100 m (amont - aval - latéral) autour des deux rives étudiées, évaluer les paramètres suivants :"]
[null,"O1",null,null,null,null,null,null,null,null,null,null,null,null,"O1"]
[null,null,null,null,null,null,null,null,null,null,null,null,null,null,null,null,null,null,null,null,0,"> 100 m"]
[null,null,"  Estimer la distance de la ripisylve avec les corridors écologiques à proximité :",null,null,null,null,null,null,null,null,null,null,null,null,null,{"$f":"IF(H10=\"\",\"\",IF(H195>100,0,IF(AND(H195>50,H195<=100),2,IF(AND(H195<=50,H195>0),4,5))))","v":""},null,null,null,2,"]50 m - 100 m] "]
[null,null,null,null,null,null,null,null,null,null,null,null,null,null,null,null,null,null,null,null,4,"≤ 50 m"]
[null,null,null,null,null,null,null,null,null,null,null,null,null,null,null,null,null,null,null,null,5,"0 m"]
[]
[null,"O2",null,null,null,null,null,null,null,null,null,null,null,null,"O2"]
[null,null,null,null,null,null,null,null,null,null,null,null,null,null,null,null,null,null,null,null,0,"Plusieurs grosses routes / Une autoroute / TGV grillagé"]
[null,null,"  Relever le nombre et type d’infrastructures de transport à proximité de la ripisylve :",null,null,null,null,null,null,null,null,null,null,null,null,null,{"$f":"IF(H10=\"\",\"\",IF(H201=\"Aucune route\",5,IF(H201=\"Une petite route\",4,IF(H201=\"Une grosse route / Plusieurs petites routes\",2,0))))","v":""},null,null,null,2,"Une grosse route / plusieurs petites routes"]
[null,null,null,null,null,null,null,null,null,null,null,null,null,null,null,null,null,null,null,null,4,"Une petite route"]
[null,null,null,null,null,null,null,null,null,null,null,null,null,null,null,null,null,null,null,null,5,"Aucune route"]
[]
[null,"O3",null,null,null,null,null,null,null,null,null,null,null,null,"O3"]
[null,null,null,null,null,null,null,null,null,null,null,null,null,null,null,null,null,null,null,null,0,"≥ 5 bâtiments"]
[null,null,"  Compter le nombre de bâtiments à proximité de la ripisylve :",null,null,null,null,null,null,null,null,null,null,null,null,null,{"$f":"IF(H10=\"\",\"\",IF(G207>=5,0,IF(AND(G207>=2,G207<=5),2,IF(G207=1,4,5))))","v":""},null,null,null,2,"2 – 5 bâtiments"]
[null,null,null,null,null,null,null,null,null,null,null,null,null,null,null,null,null,null,null,null,4,"1 bâtiment"]
[null,null,null,null,null,null,null,null,null,null,null,null,null,null,null,null,null,null,null,null,5,"0 bâtiment"]
[]
[null,null,null,null,null,null,null,null,null,null,null,null,null,null,null,null,{"$f":"Q163+Q169+Q177+Q182+Q188+Q195+Q201+Q207","v":{"$error":"#VALUE!"}},"/ 40"]
[]
[null,null,null,null,null,null,null,null,null,null,null,null,null,null,"NOTE",null,{"$f":"Q98+Q128+Q157+Q211","v":{"$error":"#VALUE!"}},"/ 100"]

{"sheet":"Tableau de donnees","index":2,"n_rows":2,"n_cols":43,"rows_kept":2,"cut":false,"hidden":false,"merged":[]}
[{"$f":"'Archivage des donnees'!$M$10","v":"00:00:00"},{"$f":"'Archivage des donnees'!$H$13","v":0},{"$f":"'Archivage des donnees'!$H$17","v":0},{"$f":"'Archivage des donnees'!$K$17","v":0},{"$f":"'Archivage des donnees'!$H$18","v":0},{"$f":"'Archivage des donnees'!$H$19","v":0},{"$f":"'Archivage des donnees'!$M$11","v":0},{"$f":"'Archivage des donnees'!$H$10","v":0},{"$f":"'Archivage des donnees'!$H$11","v":0},{"$f":"'Archivage des donnees'!$H$12","v":0},{"$f":"'Archivage des donnees'!$H$20","v":0},{"$f":"'Archivage des donnees'!$K$20","v":0},{"$f":"'Archivage des donnees'!$M$20","v":0},{"$f":"'Archivage des donnees'!$H$21","v":0},{"$f":"'Archivage des donnees'!$K$21","v":0},{"$f":"'Archivage des donnees'!$M$21","v":0},{"$f":"'Archivage des donnees'!$B$24","v":0},{"$f":"'Archivage des donnees'!$G$24","v":0},{"$f":"'Archivage des donnees'!$Q$30","v":""},{"$f":"'Archivage des donnees'!$Q$36","v":""},{"$f":"'Archivage des donnees'!$Q$44","v":""},{"$f":"'Archivage des donnees'!$Q$53","v":""},{"$f":"'Archivage des donnees'!$Q$62","v":""},{"$f":"'Archivage des donnees'!$Q$80","v":""},{"$f":"'Archivage des donnees'!$Q$95","v":""},{"$f":"'Archivage des donnees'!$Q$103","v":""},{"$f":"'Archivage des donnees'!$Q$112","v":""},{"$f":"'Archivage des donnees'!$Q$123","v":""},{"$f":"'Archivage des donnees'!$Q$140","v":""},{"$f":"'Archivage des donnees'!$Q$154","v":""},{"$f":"'Archivage des donnees'!$Q$163","v":""},{"$f":"'Archivage des donnees'!$Q$169","v":""},{"$f":"'Archivage des donnees'!$Q$177","v":""},{"$f":"'Archivage des donnees'!$Q$182","v":""},{"$f":"'Archivage des donnees'!$Q$188","v":""},{"$f":"'Archivage des donnees'!$Q$195","v":""},{"$f":"'Archivage des donnees'!$Q$201","v":""},{"$f":"'Archivage des donnees'!$Q$207","v":""},{"$f":"SUM(S1:Y1)","v":0},{"$f":"SUM(Z1:AB1)","v":0},{"$f":"SUM(AC1:AD1)","v":0},{"$f":"SUM(AE1:AL1)","v":0},{"$f":"SUM(AM1:AP1)","v":0}]
["Date","Nom(s) des observateur(s)","Département","Commune","Rivière et lieu-dit","Gestionnaire / contacts","Rive","Nom du relevé","Type de parcours","Largeur ripisylve parcourue","Latitude début","Longitude début","Altitude début","Latitude fin","Longitude fin","Altitude fin","Caractérisation du tronçon","Commentaire sur le relevé et largeur réelle de la ripisylve","A","B","C","D","E","F","G","H","I","J","K","L","M1","M2","N1","N2","N3","O1","O2","O3","Peuplement et Gestion (/35)","Contexte (/15)","Perturbations du milieu (/10)","Connectivité (/40)","Note IBC Ripisylves (/100)"]

{"sheet":"Donnees complementaires","index":3,"n_rows":4,"n_cols":79,"rows_kept":4,"cut":false,"hidden":false,"merged":[[0,42,0,50],[0,51,0,65],[0,66,0,70],[0,2,0,3],[0,4,0,7],[0,8,0,9],[0,10,0,12],[0,13,0,14],[0,15,0,30],[0,33,0,41],[1,73,1,75],[1,76,1,78],[1,2,1,3],[1,4,1,7],[1,8,1,9],[1,10,1,12],[1,13,1,14],[1,15,1,30],[1,33,1,41],[1,42,1,50],[1,51,1,65],[1,66,1,70],[1,71,1,72]]}
[null,null,"A",null,"B",null,null,null,"C",null,"D",null,null,"E",null,"F",null,null,null,null,null,null,null,null,null,null,null,null,null,null,null,"G","H","I",null,null,null,null,null,null,null,null,"J",null,null,null,null,null,null,null,null,"K",null,null,null,null,null,null,null,null,null,null,null,null,null,null,"L",null,null,null,null,"M1","M2","N1","N2","N3","O1","O2","O3"]
[null,null,"Ligneux autochtones",null,"Structure verticale de la végétation",null,null,null,"Bois morts sur pied",null,"Bois morts au sol",null,null,"Gros Bois et Très Gros Bois vivants",null,"Arbres vivants porteurs de dendromicrohabitats",null,null,null,null,null,null,null,null,null,null,null,null,null,null,null,"Abris racinaires aquatiques","Continuité temporelle de l'état boisé","Milieux aquatiques complémentaires au cours d'eau",null,null,null,null,null,null,null,null,"Milieux minéraux annexes",null,null,null,null,null,null,null,null,"Présence d'espèces exotiques envahissantes",null,null,null,null,null,null,null,null,null,null,null,null,null,null,"Dégradation et perturbation du milieu",null,null,null,null,"Connectivité longitudinale",null,"Connectivité transversale",null,null,"Connectivité paysagère"]
[{"$f":"'Archivage des donnees'!$M$10","v":"00:00:00"},{"$f":"'Archivage des donnees'!$H$10","v":0},{"$f":"IF('Archivage des donnees'!$B$30 =TRUE,1,0)","v":0},{"$f":"IF('Archivage des donnees'!$B$31 =TRUE,1,0)","v":0},{"$f":"IF('Archivage des donnees'!$B$35 =TRUE,1,0)","v":0},{"$f":"IF('Archivage des donnees'!$B$36 =TRUE,1,0)","v":0},{"$f":"IF('Archivage des donnees'!$B$37 =TRUE,1,0)","v":0},{"$f":"IF('Archivage des donnees'!$B$38 =TRUE,1,0)","v":0},{"$f":"'Archivage des donnees'!$I$44","v":0},{"$f":"'Archivage des donnees'!$I$45","v":0},{"$f":"'Archivage des donnees'!$I$51","v":0},{"$f":"'Archivage des donnees'!$I$53","v":0},{"$f":"'Archivage des donnees'!$I$54","v":0},{"$f":"'Archivage des donnees'!$I$62","v":0},{"$f":"'Archivage des donnees'!$I$63","v":0},{"$f":"'Archivage des donnees'!$J$72","v":0},{"$f":"'Archivage des donnees'!$J$73","v":0},{"$f":"'Archivage des donnees'!$J$74","v":0},{"$f":"'Archivage des donnees'!$J$75","v":0},{"$f":"'Archivage des donnees'!$J$76","v":0},{"$f":"'Archivage des donnees'!$J$77","v":0},{"$f":"'Archivage des donnees'!$J$78","v":0},{"$f":"'Archivage des donnees'!$J$80","v":0},{"$f":"'Archivage des donnees'!$J$83","v":0},{"$f":"'Archivage des donnees'!$J$84","v":0},{"$f":"'Archivage des donnees'!$J$85","v":0},{"$f":"'Archivage des donnees'!$J$86","v":0},{"$f":"'Archivage des donnees'!$J$87","v":0},{"$f":"'Archivage des donnees'!$J$88","v":0},{"$f":"'Archivage des donnees'!$J$89","v":0},{"$f":"'Archivage des donnees'!$J$90","v":0},{"$f":"'Archivage des donnees'!$H$95","v":0},{"$f":"'Archivage des donnees'!$G$103","v":0},{"$f":"IF('Archivage des donnees'!$B$108 =TRUE,1,0)","v":0},{"$f":"IF('Archivage des donnees'!$B$109 =TRUE,1,0)","v":0},{"$f":"IF('Archivage des donnees'!$B$110 =TRUE,1,0)","v":0},{"$f":"IF('Archivage des donnees'!$B$111 =TRUE,1,0)","v":0},{"$f":"IF('Archivage des donnees'!$B$112 =TRUE,1,0)","v":0},{"$f":"IF('Archivage des donnees'!$B$113 =TRUE,1,0)","v":0},{"$f":"IF('Archivage des donnees'!$B$114 =TRUE,1,0)","v":0},{"$f":"IF('Archivage des donnees'!$B$115 =TRUE,1,0)","v":0},{"$f":"IF('Archivage des donnees'!$B$116 =TRUE,1,0)","v":0},{"$f":"IF('Archivage des donnees'!$B$119 =TRUE,1,0)","v":0},{"$f":"IF('Archivage des donnees'!$B$120 =TRUE,1,0)","v":0},{"$f":"IF('Archivage des donnees'!$B$121 =TRUE,1,0)","v":0},{"$f":"IF('Archivage des donnees'!$B$122 =TRUE,1,0)","v":0},{"$f":"IF('Archivage des donnees'!$B$123 =TRUE,1,0)","v":0},{"$f":"IF('Archivage des donnees'!$B$124 =TRUE,1,0)","v":0},{"$f":"IF('Archivage des donnees'!$B$125 =TRUE,1,0)","v":0},{"$f":"IF('Archivage des donnees'!$B$126 =TRUE,1,0)","v":0},{"$f":"IF('Archivage des donnees'!$B$127 =TRUE,1,0)","v":0},{"$f":"'Archivage des donnees'!$J$133","v":0},{"$f":"'Archivage des donnees'!$J$134","v":0},{"$f":"'Archivage des donnees'!$J$135","v":0},{"$f":"'Archivage des donnees'!$J$136","v":0},{"$f":"'Archivage des donnees'!$J$137","v":0},{"$f":"'Archivage des donnees'!$J$138","v":0},{"$f":"'Archivage des donnees'!$J$139","v":0},{"$f":"'Archivage des donnees'!$J$140","v":0},{"$f":"'Archivage des donnees'!$J$141","v":0},{"$f":"'Archivage des donnees'!$J$142","v":0},{"$f":"'Archivage des donnees'!$J$143","v":0},{"$f":"'Archivage des donnees'!$J$144","v":0},{"$f":"'Archivage des donnees'!$J$145","v":0},{"$f":"'Archivage des donnees'!$J$146","v":0},{"$f":"'Archivage des donnees'!$F$148","v":0},{"$f":"IF('Archivage des donnees'!$B$152 =TRUE,1,0)","v":0},{"$f":"IF('Archivage des donnees'!$B$153 =TRUE,1,0)","v":0},{"$f":"IF('Archivage des donnees'!$B$154 =TRUE,1,0)","v":0},{"$f":"IF('Archivage des donnees'!$B$155 =TRUE,1,0)","v":0},{"$f":"IF('Archivage des donnees'!$B$156 =TRUE,1,0)","v":0},{"$f":"'Archivage des donnees'!$J$163","v":0},{"$f":"'Archivage des donnees'!$K$169","v":0},{"$f":"'Archivage des donnees'!$F$177","v":0},{"$f":"'Archivage des donnees'!$E$182","v":0},{"$f":"IF(ISBLANK('Archivage des donnees'!$E$188),'Archivage des donnees'!$F$188&\"°\",IF(ISBLANK('Archivage des donnees'!$F$188),'Archivage des donnees'!$E$188,'Archivage des donnees'!$F$188))","v":"°"},{"$f":"'Archivage des donnees'!$H$195","v":0},{"$f":"'Archivage des donnees'!$H$201","v":0},{"$f":"'Archivage des donnees'!$G$207","v":0}]
["Date","Nom du relevé","Bois tendre","Bois dur","Hélophytes","Feuillage < 1.5 m","Feuillage 1.5 à 7 m","Feuillage > 7 m","BMm","BMg","Tas de bois","BMm","BMg","GB","TGB","Loges de pics","Cavités à terreau","Orifices et galeries d'insectes ","Concavités ","Aubier apparent","Aubier et bois de cœur apparents ","Bois mort dans le houppier ","Agglomérations de gourmands ou rameaux ","Loupes et chancres","Sporophores de champignons pérennes","Sporophores de champignons éphémères ","Plantes et lichens épiphytes ou parasites","Nids ","Microsols","Coulées de sève et résine","Total du nombre d'arbres porteurs de dendromicrohabitats","Nombre d'arbres vivants et morts avec abris","Forêt ancienne ?","Source ou suintement","Ruisselet, fossé humide non entretenu ou petit canal","Confluence avec un autre cours d’eau","Bras mort, isolé, secondaire","Lac ou plan d’eau profond","Etang, lagune ou plan d’eau peu profond","Mare ou autre petit point d’eau","Tourbière","Zone marécageuse","Falaise","Grotte ou gouffre","Rocher de hauteur inférieure à celle du peuplement ","Éboulis instable","Chaos de blocs ","Affleurement de banc de galets ","Plage de dépôt de sédiments fins","Berges meubles verticales ","Amoncellement de blocs stables ","Ailante","Balsamine de l’Himalaya","Berce du Caucase","Buddléia de David / Arbre aux papillons","Érable negundo","Faux-indigo","Laurier cerise","Raisin d’Amérique","Renouées asiatiques \n(ex : Renouée du Japon)","Solidages \n(ex : Solidage verge-d’or)","Topinambour","Vigne vierge commune","Robinier faux-acacia","Total du pourcentage de recouvrement","Espèce(s) invasive(s) non listée(s)","Artificialisation et dégradation des berges ","Artificialisation des milieux","Imperméabilisation","Fréquentation humaine et espèces associées","Décharge sauvage","% de la berge ","Infrastructures de transport transversales au cours d'eau en mètres de large cumulés","Connexion du cours d’eau au lit majeur ","% de sol nu sans végétation ","Pente moyenne de la berge en degrès ou %","Distance de la ripisylve ","Nombre et type d'infrastructures de transport présentes","Nombre de bâtiments à proximité de la ripisylve"]

{"sheet":"Analyse des releves","index":4,"n_rows":69,"n_cols":13,"rows_kept":69,"cut":false,"hidden":false,"merged":[[0,0,0,5],[0,7,0,12],[66,4,66,9]]}
["Entrez le nom du relevé que vous voulez comparer dans la cellule bleue",null,null,null,null,null,null,"Entrez le nom du relevé que vous voulez comparer dans la cellule bleue"]
["Relevé 1","Peuplement et Gestion (/35)","Contexte (/15)","Perturbations du milieu (/10)","Connectivité (/40)","Note IBC Ripisylves (/100)",null,"Relevé 2","Peuplement et Gestion (/35)","Contexte (/15)","Perturbations du milieu (/10)","Connectivité (/40)","Note IBC Ripisylves (/100)"]
[null,{"$f":"IF(A3=\"\",\"\",VLOOKUP($A$3,$E$69:$J$976,2,0))","v":""},{"$f":"IF(A3=\"\",\"\",VLOOKUP($A$3,$E$69:$J$976,3,0))","v":""},{"$f":"IF(A3=\"\",\"\",VLOOKUP($A$3,$E$69:$J$976,4,0))","v":""},{"$f":"IF(A3=\"\",\"\",VLOOKUP($A$3,$E$69:$J$976,5,0))","v":""},{"$f":"IF(A3=\"\",\"\",VLOOKUP($A$3,$E$69:$J$976,6,0))","v":""},null,null,{"$f":"IF(H3=\"\",\"\",VLOOKUP($H$3,$E$69:$J$976,2,0))","v":""},{"$f":"IF(H3=\"\",\"\",VLOOKUP($H$3,$E$69:$J$976,3,0))","v":""},{"$f":"IF(H3=\"\",\"\",VLOOKUP($H$3,$E$69:$J$976,4,0))","v":""},{"$f":"IF(H3=\"\",\"\",VLOOKUP($H$3,$E$69:$J$976,5,0))","v":""},{"$f":"IF(H3=\"\",\"\",VLOOKUP($H$3,$E$69:$J$976,6,0))","v":""}]
["Forte",{"$f":"IF(AND(B3<=35,B3>23),B3,\"\")","v":""},{"$f":"IF(AND(C3<=15,C3>10),C3,\"\")","v":""},{"$f":"IF(AND(D3<=10,D3>7),D3,\"\")","v":""},{"$f":"IF(AND(E3<=40,E3>30),E3,\"\")","v":""},{"$f":"IF(AND(F3<=100,F3>70),F3,\"\")","v":""},null,"Forte",{"$f":"IF(AND(I3<=35,I3>23),I3,\"\")","v":""},{"$f":"IF(AND(J3<=15,J3>10),J3,\"\")","v":""},{"$f":"IF(AND(K3<=10,K3>7),K3,\"\")","v":""},{"$f":"IF(AND(L3<=40,L3>30),L3,\"\")","v":""},{"$f":"IF(AND(M3<=100,M3>70),M3,\"\")","v":""}]
["Assez forte",{"$f":"IF(AND(B3<=23,B3>15),B3,\"\")","v":""},{"$f":"IF(AND(C3<=10,C3>7),C3,\"\")","v":""},{"$f":"IF(AND(D3<=7,D3>5),D3,\"\")","v":""},{"$f":"IF(AND(E3<=30,E3>20),E3,\"\")","v":""},{"$f":"IF(AND(F3<=70,F3>50),F3,\"\")","v":""},null,"Assez forte",{"$f":"IF(AND(I3<=23,I3>15),I3,\"\")","v":""},{"$f":"IF(AND(J3<=10,J3>7),J3,\"\")","v":""},{"$f":"IF(AND(K3<=7,K3>5),K3,\"\")","v":""},{"$f":"IF(AND(L3<=30,L3>20),L3,\"\")","v":""},{"$f":"IF(AND(M3<=70,M3>50),M3,\"\")","v":""}]
["Assez faible",{"$f":"IF(AND(B3<=15,B3>7),B3,\"\")","v":""},{"$f":"IF(AND(C3<=7,C3>5),C3,\"\")","v":""},{"$f":"IF(AND(D3<=5,D3>2),D3,\"\")","v":""},{"$f":"IF(AND(E3<=20,E3>10),E3,\"\")","v":""},{"$f":"IF(AND(F3<=50,F3>30),F3,\"\")","v":""},null,"Assez faible",{"$f":"IF(AND(I3<=15,I3>7),I3,\"\")","v":""},{"$f":"IF(AND(J3<=7,J3>5),J3,\"\")","v":""},{"$f":"IF(AND(K3<=5,K3>2),K3,\"\")","v":""},{"$f":"IF(AND(L3<=20,L3>10),L3,\"\")","v":""},{"$f":"IF(AND(M3<=50,M3>30),M3,\"\")","v":""}]
["Faible",{"$f":"IF(B3<=7,B3,\"\")","v":""},{"$f":"IF(C3<=5,C3,\"\")","v":""},{"$f":"IF(D3<=2,D3,\"\")","v":""},{"$f":"IF(E3<=10,E3,\"\")","v":""},{"$f":"IF(F3<=30,F3,\"\")","v":""},null,"Faible",{"$f":"IF(I3<=7,I3,\"\")","v":""},{"$f":"IF(J3<=5,J3,\"\")","v":""},{"$f":"IF(K3<=2,K3,\"\")","v":""},{"$f":"IF(L3<=10,L3,\"\")","v":""},{"$f":"IF(M3<=30,M3,\"\")","v":""}]
["Score max",35,15,10,40,100,null,"Score max",35,15,10,40,100]
[]
[]
[]
[]
[]
[]
[]
[]
[]
[]
[]
[]
[]
[]
[]
[]
[]
[]
[]
[]
[]
[]
[]
[]
[]
[]
[]
[]
[]
[]
[]
[]
[]
[]
[]
[]
[]
[]
[]
[]
[]
[]
[]
[]
[]
[]
[]
[]
[]
[]
[]
[]
[]
[]
[]
[]
[]
[]
[null,null,null,null,"Tableau regroupant les scores par catégorie et la note IBC Ripisylves finale des relevés"]
[null,null,null,null,{"$f":"'Tableau de donnees'!$H$1","v":0},{"$f":"'Tableau de donnees'!$AM$1","v":0},{"$f":"'Tableau de donnees'!$AN$1","v":0},{"$f":"'Tableau de donnees'!$AO$1","v":0},{"$f":"'Tableau de donnees'!$AP$1","v":0},{"$f":"'Tableau de donnees'!$AQ$1","v":0}]
[null,null,null,null,"Nom du relevé","Peuplement et Gestion \n(/35)","Contexte \n(/15)","Perturbations du milieu \n(/10)","Connectivité \n(/40)","Note IBC Ripisylves \n(/100)"]

{"sheet":"Comparaison des releves","index":5,"n_rows":16,"n_cols":14,"rows_kept":16,"cut":false,"hidden":false,"merged":[[0,8,0,13],[2,7,9,7],[12,0,13,5]]}
[null,null,null,null,null,null,null,null,"Pour report automatique des scores et aperçu sur le graphique, entrez les noms des relevés que vous voulez comparer dans cellules bleues"]
[null,null,null,null,null,null,null,null,"Nom du relevé","Peuplement et Gestion (/35)","Contexte (/15)","Perturbations du milieu (/10)","Connectivité (/40)","Note IBC Ripisylves (/100)"]
[null,null,null,null,null,null,null,"Entrez les noms des relevés que vous voulez comparer dans les cellules bleues",null,{"$f":"IF($I$3=\"\",\"\",VLOOKUP($I$3,$A:$F,2,0))","v":""},{"$f":"IF($I$3=\"\",\"\",VLOOKUP($I$3,$A:$F,3,0))","v":""},{"$f":"IF($I$3=\"\",\"\",VLOOKUP($I$3,$A:$F,4,0))","v":""},{"$f":"IF($I$3=\"\",\"\",VLOOKUP($I$3,$A:$F,5,0))","v":""},{"$f":"IF($I$3=\"\",\"\",VLOOKUP($I$3,$A:$F,6,0))","v":""}]
[null,null,null,null,null,null,null,null,null,{"$f":"IF($I$4=\"\",\"\",VLOOKUP($I$4,$A:$F,2,0))","v":""},{"$f":"IF($I$4=\"\",\"\",VLOOKUP($I$4,$A:$F,3,0))","v":""},{"$f":"IF($I$4=\"\",\"\",VLOOKUP($I$4,$A:$F,4,0))","v":""},{"$f":"IF($I$4=\"\",\"\",VLOOKUP($I$4,$A:$F,5,0))","v":""},{"$f":"IF($I$4=\"\",\"\",VLOOKUP($I$4,$A:$F,6,0))","v":""}]
[null,null,null,null,null,null,null,null,null,{"$f":"IF($I$5=\"\",\"\",VLOOKUP($I$5,$A:$F,2,0))","v":""},{"$f":"IF($I$5=\"\",\"\",VLOOKUP($I$5,$A:$F,3,0))","v":""},{"$f":"IF($I$5=\"\",\"\",VLOOKUP($I$5,$A:$F,4,0))","v":""},{"$f":"IF($I$5=\"\",\"\",VLOOKUP($I$5,$A:$F,5,0))","v":""},{"$f":"IF($I$5=\"\",\"\",VLOOKUP($I$5,$A:$F,6,0))","v":""}]
[null,null,null,null,null,null,null,null,null,{"$f":"IF($I$6=\"\",\"\",VLOOKUP($I$6,$A:$F,2,0))","v":""},{"$f":"IF($I$6=\"\",\"\",VLOOKUP($I$6,$A:$F,3,0))","v":""},{"$f":"IF($I$6=\"\",\"\",VLOOKUP($I$6,$A:$F,4,0))","v":""},{"$f":"IF($I$6=\"\",\"\",VLOOKUP($I$6,$A:$F,5,0))","v":""},{"$f":"IF($I$6=\"\",\"\",VLOOKUP($I$6,$A:$F,6,0))","v":""}]
[null,null,null,null,null,null,null,null,null,{"$f":"IF($I$7=\"\",\"\",VLOOKUP($I$7,$A:$F,2,0))","v":""},{"$f":"IF($I$7=\"\",\"\",VLOOKUP($I$7,$A:$F,3,0))","v":""},{"$f":"IF($I$7=\"\",\"\",VLOOKUP($I$7,$A:$F,4,0))","v":""},{"$f":"IF($I$7=\"\",\"\",VLOOKUP($I$7,$A:$F,5,0))","v":""},{"$f":"IF($I$7=\"\",\"\",VLOOKUP($I$7,$A:$F,6,0))","v":""}]
[null,null,null,null,null,null,null,null,null,{"$f":"IF($I$8=\"\",\"\",VLOOKUP($I$8,$A:$F,2,0))","v":""},{"$f":"IF($I$8=\"\",\"\",VLOOKUP($I$8,$A:$F,3,0))","v":""},{"$f":"IF($I$8=\"\",\"\",VLOOKUP($I$8,$A:$F,4,0))","v":""},{"$f":"IF($I$8=\"\",\"\",VLOOKUP($I$8,$A:$F,5,0))","v":""},{"$f":"IF($I$8=\"\",\"\",VLOOKUP($I$8,$A:$F,6,0))","v":""}]
[null,null,null,null,null,null,null,null,null,{"$f":"IF($I$9=\"\",\"\",VLOOKUP($I$9,$A:$F,2,0))","v":""},{"$f":"IF($I$9=\"\",\"\",VLOOKUP($I$9,$A:$F,3,0))","v":""},{"$f":"IF($I$9=\"\",\"\",VLOOKUP($I$9,$A:$F,4,0))","v":""},{"$f":"IF($I$9=\"\",\"\",VLOOKUP($I$9,$A:$F,5,0))","v":""},{"$f":"IF($I$9=\"\",\"\",VLOOKUP($I$9,$A:$F,6,0))","v":""}]
[null,null,null,null,null,null,null,null,null,{"$f":"IF($I$10=\"\",\"\",VLOOKUP($I$10,$A:$F,2,0))","v":""},{"$f":"IF($I$10=\"\",\"\",VLOOKUP($I$10,$A:$F,3,0))","v":""},{"$f":"IF($I$10=\"\",\"\",VLOOKUP($I$10,$A:$F,4,0))","v":""},{"$f":"IF($I$10=\"\",\"\",VLOOKUP($I$10,$A:$F,5,0))","v":""},{"$f":"IF($I$10=\"\",\"\",VLOOKUP($I$10,$A:$F,6,0))","v":""}]
[]
[]
["Tableau de données regroupant les scores par catégorie et la note globale IBC Ripisylves d'un relevé"]
[]
[{"$f":"'Tableau de donnees'!$H$1","v":0},{"$f":"'Tableau de donnees'!$AM$1","v":0},{"$f":"'Tableau de donnees'!$AN$1","v":0},{"$f":"'Tableau de donnees'!$AO$1","v":0},{"$f":"'Tableau de donnees'!$AP$1","v":0},{"$f":"'Tableau de donnees'!$AQ$1","v":0}]
["Nom du relevé","Peuplement et Gestion\n(/35)","Contexte\n (/15)","Perturbations du milieu \n(/10)","Connectivité \n(/40)","Note IBC Ripisylves \n(/100)"]